[Event "Titled Tuesday Blitz July 25 Early 2023"]
[White "Girinath, P.D.S."]
[Black "Przybylski, Wojciech"]
[WhiteFideId "5000572"]
[BlackFideId "1117599"]
[WhiteElo "2345"]
[BlackElo "2556"]
[Result "1-0"]
[Round "3"]
[TimeControl "180+2"]
[Date "2023.07.25"]
[WhiteClock "0:00:07"]
[BlackClock "0:00:20"]
[Board "139"]

1. e4 {[%clk 0:03:00]}  c5 {[%clk 0:02:59]} 2. Nf3 {[%clk 0:02:59]}  d6 {[%clk 0:02:58]} 3. Bb5+ {[%clk 0:02:58]}  Bd7 {[%clk 0:02:56]} 4. Bxd7+ {[%clk 0:02:57]}  Qxd7 {[%clk 0:02:56]} 5. O-O {[%clk 0:02:56]}  Nf6 {[%clk 0:02:56]} 6. e5 {[%clk 0:02:56]}  dxe5 {[%clk 0:02:55]} 7. Nxe5 {[%clk 0:02:56]}  Qc7 {[%clk 0:02:55]} 8. d4 {[%clk 0:02:56]}  cxd4 {[%clk 0:02:46]} 9. Bf4 {[%clk 0:02:55]}  Qb6 {[%clk 0:02:42]} 10. Na3 {[%clk 0:02:53]}  Nbd7 {[%clk 0:02:40]} 11. Nac4 {[%clk 0:02:49]}  Qc5 {[%clk 0:02:36]} 12. Re1 {[%clk 0:01:48]}  e6 {[%clk 0:02:34]} 13. Qf3 {[%clk 0:01:40]}  Nxe5 {[%clk 0:02:01]} 14. Nxe5 {[%clk 0:01:31]}  Qd5 {[%clk 0:01:59]} 15. Qh3 {[%clk 0:01:16]}  Be7 {[%clk 0:01:53]} 16. c4 {[%clk 0:01:11]}  Qd8 {[%clk 0:01:33]} 17. Nxf7 {[%clk 0:00:59]}  Kxf7 {[%clk 0:01:33]} 18. Qxe6+ {[%clk 0:00:57]}  Kf8 {[%clk 0:01:32]} 19. c5 {[%clk 0:00:51]}  Bxc5 {[%clk 0:01:22]} 20. Rac1 {[%clk 0:00:44]}  Qd7 {[%clk 0:01:09]} 21. Rxc5 {[%clk 0:00:33]}  Qxe6 {[%clk 0:01:09]} 22. Rxe6 {[%clk 0:00:34]}  Rd8 {[%clk 0:01:03]} 23. Rc7 {[%clk 0:00:29]}  d3 {[%clk 0:01:03]} 24. Bd2 {[%clk 0:00:20]}  Ne8 {[%clk 0:00:48]} 25. Rxb7 {[%clk 0:00:17]}  h6 {[%clk 0:00:45]} 26. Ree7 {[%clk 0:00:15]}  Kg8 {[%clk 0:00:45]} 27. Kf1 {[%clk 0:00:12]}  Kh7 {[%clk 0:00:45]} 28. Ke1 {[%clk 0:00:11]}  Rf8 {[%clk 0:00:44]} 29. Bc3 {[%clk 0:00:10]}  h5 {[%clk 0:00:41]} 30. f3 {[%clk 0:00:09]}  Rf5 {[%clk 0:00:40]} 31. Bxg7 {[%clk 0:00:07]}  d2+ {[%clk 0:00:38]} 32. Kd1 {[%clk 0:00:07]}  Rg5 {[%clk 0:00:36]} 33. Bf6+ {[%clk 0:00:05]}  Kg6 {[%clk 0:00:36]} 34. Bxg5 {[%clk 0:00:06]}  Kxg5 {[%clk 0:00:37]} 35. Re2 {[%clk 0:00:06]}  Nd6 {[%clk 0:00:36]} 36. Rb4 {[%clk 0:00:06]}  Nf5 {[%clk 0:00:36]} 37. Rxd2 {[%clk 0:00:06]}  Re8 {[%clk 0:00:35]} 38. Rd5 {[%clk 0:00:05]}  Kg6 {[%clk 0:00:35]} 39. Kd2 {[%clk 0:00:04]}  a5 {[%clk 0:00:33]} 40. Rxa5 {[%clk 0:00:03]}  Rd8+ {[%clk 0:00:33]} 41. Kc3 {[%clk 0:00:02]}  Rc8+ {[%clk 0:00:33]} 42. Kb3 {[%clk 0:00:03]}  Ne3 {[%clk 0:00:33]} 43. Ra6+ {[%clk 0:00:02]}  Kf7 {[%clk 0:00:23]} 44. Rb7+ {[%clk 0:00:02]}  Kg8 {[%clk 0:00:23]} 45. Rab6 {[%clk 0:00:02]}  Rc5 {[%clk 0:00:18]} 46. Rb8+ {[%clk 0:00:03]}  Kf7 {[%clk 0:00:18]} 47. R8b7+ {[%clk 0:00:03]}  Kg8 {[%clk 0:00:18]} 48. Ra7 {[%clk 0:00:04]}  Rc8 {[%clk 0:00:18]} 49. Rbb7 {[%clk 0:00:04]}  Nf5 {[%clk 0:00:19]} 50. Rc7 {[%clk 0:00:04]}  Rb8+ {[%clk 0:00:18]} 51. Ka3 {[%clk 0:00:04]}  Re8 {[%clk 0:00:19]} 52. b4 {[%clk 0:00:04]}  Nd6 {[%clk 0:00:19]} 53. Ka4 {[%clk 0:00:04]}  Rb8 {[%clk 0:00:16]} 54. Rd7 {[%clk 0:00:03]}  Nc4 {[%clk 0:00:16]} 55. Rdb7 {[%clk 0:00:03]}  Re8 {[%clk 0:00:16]} 56. Kb5 {[%clk 0:00:02]}  Nd6+ {[%clk 0:00:16]} 57. Kc6 {[%clk 0:00:02]}  Nf5 {[%clk 0:00:16]} 58. Rd7 {[%clk 0:00:02]}  Re6+ {[%clk 0:00:16]} 59. Kc5 {[%clk 0:00:01]}  Re8 {[%clk 0:00:16]} 60. Kc4 {[%clk 0:00:02]}  Rc8+ {[%clk 0:00:16]} 61. Kb3 {[%clk 0:00:03]}  Re8 {[%clk 0:00:16]} 62. a4 {[%clk 0:00:03]}  Ne3 {[%clk 0:00:17]} 63. Kc3 {[%clk 0:00:03]}  Nf5 {[%clk 0:00:17]} 64. b5 {[%clk 0:00:03]}  Rc8+ {[%clk 0:00:18]} 65. Kb4 {[%clk 0:00:04]}  Rb8 {[%clk 0:00:19]} 66. Ka5 {[%clk 0:00:04]}  Rf8 {[%clk 0:00:19]} 67. Ka6 {[%clk 0:00:05]}  Re8 {[%clk 0:00:20]} 68. b6 {[%clk 0:00:05]}  Ne3 {[%clk 0:00:20]} 69. a5 {[%clk 0:00:06]}  h4 {[%clk 0:00:18]} 70. Rac7 {[%clk 0:00:07]}  h3 {[%clk 0:00:19]} 71. gxh3 {[%clk 0:00:07]}  Nf5 {[%clk 0:00:19]} 72. b7 {[%clk 0:00:08]}  Ra8+ {[%clk 0:00:20]} 73. bxa8=Q# {[%clk 0:00:07]} 1-0


[Site "https://www.chess.com"]

[Event "Titled Tuesday Blitz July 25 Early 2023"]
[White "Dwilewicz, Katarzyna"]
[Black "Bagrationi, Alexander"]
[WhiteFideId "1148486"]
[BlackFideId "14104954"]
[WhiteElo "2344"]
[BlackElo "2556"]
[Result "0-1"]
[Round "3"]
[TimeControl "180+2"]
[Date "2023.07.25"]
[WhiteClock "0:00:33"]
[BlackClock "0:00:47"]
[Board "140"]

1. e4 {[%clk 0:03:00]}  c6 {[%clk 0:02:01]} 2. d4 {[%clk 0:02:57]}  d5 {[%clk 0:01:58]} 3. Nc3 {[%clk 0:02:58]}  dxe4 {[%clk 0:01:58]} 4. Nxe4 {[%clk 0:02:59]}  Nf6 {[%clk 0:01:59]} 5. Nxf6+ {[%clk 0:02:59]}  exf6 {[%clk 0:01:59]} 6. c3 {[%clk 0:02:59]}  Bd6 {[%clk 0:01:57]} 7. Bd3 {[%clk 0:03:00]}  Na6 {[%clk 0:01:57]} 8. Qc2 {[%clk 0:02:58]}  h5 {[%clk 0:01:55]} 9. Ne2 {[%clk 0:02:53]}  Nc7 {[%clk 0:01:53]} 10. Bf4 {[%clk 0:02:50]}  Nd5 {[%clk 0:01:51]} 11. Bxd6 {[%clk 0:02:49]}  Qxd6 {[%clk 0:01:52]} 12. O-O-O {[%clk 0:02:48]}  b5 {[%clk 0:01:52]} 13. Rhe1 {[%clk 0:02:42]}  O-O {[%clk 0:01:44]} 14. Ng3 {[%clk 0:02:40]}  h4 {[%clk 0:01:41]} 15. Nf5 {[%clk 0:02:29]}  Bxf5 {[%clk 0:01:39]} 16. Bxf5 {[%clk 0:02:29]}  a5 {[%clk 0:01:35]} 17. g3 {[%clk 0:02:21]}  Rfe8 {[%clk 0:01:32]} 18. Re4 {[%clk 0:02:16]}  g6 {[%clk 0:01:25]} 19. Rxe8+ {[%clk 0:01:24]}  Rxe8 {[%clk 0:01:23]} 20. Bxg6 {[%clk 0:01:23]}  fxg6 {[%clk 0:01:23]} 21. Qxg6+ {[%clk 0:01:23]}  Kf8 {[%clk 0:01:23]} 22. Qh6+ {[%clk 0:01:23]}  Ke7 {[%clk 0:01:23]} 23. Qxh4 {[%clk 0:01:11]}  Kd7 {[%clk 0:01:23]} 24. Qg4+ {[%clk 0:01:03]}  Qe6 {[%clk 0:01:21]} 25. Qf3 {[%clk 0:00:56]}  Qe2 {[%clk 0:01:17]} 26. Qf5+ {[%clk 0:00:52]}  Kc7 {[%clk 0:01:16]} 27. h4 {[%clk 0:00:51]}  b4 {[%clk 0:00:52]} 28. c4 {[%clk 0:00:44]}  Qxc4+ {[%clk 0:00:51]} 29. Kb1 {[%clk 0:00:44]}  Re2 {[%clk 0:00:48]} 30. h5 {[%clk 0:00:38]}  Nc3+ {[%clk 0:00:47]} 31. bxc3 {[%clk 0:00:34]}  Qxa2+ {[%clk 0:00:46]} 32. Kc1 {[%clk 0:00:33]}  Qb2# {[%clk 0:00:47]} 0-1


[Site "https://www.chess.com"]

[Event "Titled Tuesday Blitz July 25 Early 2023"]
[White "FoxOnTheRun97"]
[Black "chessmateto"]
[WhiteElo "2554"]
[BlackElo "2343"]
[Result "1/2-1/2"]
[Round "3"]
[TimeControl "180+2"]
[Date "2023.07.25"]
[WhiteClock "0:00:13"]
[BlackClock "0:00:20"]
[Board "141"]

1. e4 {[%clk 0:02:59]}  c6 {[%clk 0:02:59]} 2. d4 {[%clk 0:02:59]}  d5 {[%clk 0:03:00]} 3. e5 {[%clk 0:02:59]}  Bf5 {[%clk 0:02:59]} 4. h4 {[%clk 0:02:58]}  h6 {[%clk 0:02:59]} 5. Nc3 {[%clk 0:02:55]}  e6 {[%clk 0:02:57]} 6. Nge2 {[%clk 0:02:51]}  c5 {[%clk 0:02:50]} 7. Be3 {[%clk 0:02:50]}  Nc6 {[%clk 0:02:50]} 8. Ng3 {[%clk 0:02:47]}  Bh7 {[%clk 0:02:46]} 9. Bb5 {[%clk 0:02:41]}  Qb6 {[%clk 0:02:29]} 10. O-O {[%clk 0:02:30]}  a6 {[%clk 0:02:19]} 11. Bxc6+ {[%clk 0:02:29]}  Qxc6 {[%clk 0:02:18]} 12. Nce2 {[%clk 0:02:23]}  b6 {[%clk 0:01:53]} 13. f4 {[%clk 0:02:16]}  Ne7 {[%clk 0:01:51]} 14. c3 {[%clk 0:02:07]}  Nf5 {[%clk 0:01:50]} 15. Nxf5 {[%clk 0:02:07]}  Bxf5 {[%clk 0:01:50]} 16. Ng3 {[%clk 0:01:54]}  g6 {[%clk 0:01:49]} 17. h5 {[%clk 0:01:53]}  Rg8 {[%clk 0:01:37]} 18. hxg6 {[%clk 0:01:46]}  fxg6 {[%clk 0:01:34]} 19. Nxf5 {[%clk 0:01:45]}  gxf5 {[%clk 0:01:24]} 20. Qh5+ {[%clk 0:01:45]}  Kd7 {[%clk 0:01:24]} 21. Rf3 {[%clk 0:01:37]}  Be7 {[%clk 0:01:06]} 22. Qh3 {[%clk 0:01:12]}  Rg6 {[%clk 0:01:03]} 23. Rg3 {[%clk 0:01:11]}  Rag8 {[%clk 0:01:02]} 24. Rxg6 {[%clk 0:01:11]}  Rxg6 {[%clk 0:01:03]} 25. Qh5 {[%clk 0:01:08]}  Rg3 {[%clk 0:00:47]} 26. Bf2 {[%clk 0:01:07]}  Rg4 {[%clk 0:00:47]} 27. Qxh6 {[%clk 0:01:05]}  cxd4 {[%clk 0:00:46]} 28. Bxd4 {[%clk 0:01:02]}  Qc4 {[%clk 0:00:42]} 29. Rf1 {[%clk 0:00:30]}  Bc5 {[%clk 0:00:38]} 30. Bxc5 {[%clk 0:00:17]}  Qxc5+ {[%clk 0:00:32]} 31. Rf2 {[%clk 0:00:16]}  Qe3 {[%clk 0:00:27]} 32. Qh7+ {[%clk 0:00:13]}  Kc6 {[%clk 0:00:22]} 33. Qe7 {[%clk 0:00:11]}  Qe1+ {[%clk 0:00:20]} 34. Rf1 {[%clk 0:00:11]}  Qe3+ {[%clk 0:00:20]} 35. Rf2 {[%clk 0:00:11]}  Qe1+ {[%clk 0:00:20]} 36. Rf1 {[%clk 0:00:12]}  Qe3+ {[%clk 0:00:20]} 37. Rf2 {[%clk 0:00:13]} 1/2-1/2


[Site "https://www.chess.com"]

[Event "Titled Tuesday Blitz July 25 Early 2023"]
[White "Ambartsumova, Karina"]
[Black "Gavarrete, Nahun"]
[WhiteFideId "4166299"]
[BlackFideId "8400709"]
[WhiteElo "2551"]
[BlackElo "2342"]
[Result "1/2-1/2"]
[Round "3"]
[TimeControl "180+2"]
[Date "2023.07.25"]
[WhiteClock "0:00:08"]
[BlackClock "0:00:06"]
[Board "142"]

1. c4 {[%clk 0:03:00]}  e6 {[%clk 0:02:56]} 2. Nf3 {[%clk 0:02:59]}  d5 {[%clk 0:02:52]} 3. g3 {[%clk 0:03:00]}  Nf6 {[%clk 0:02:52]} 4. Bg2 {[%clk 0:03:00]}  c5 {[%clk 0:02:52]} 5. cxd5 {[%clk 0:02:57]}  exd5 {[%clk 0:02:52]} 6. d4 {[%clk 0:02:56]}  Nc6 {[%clk 0:02:51]} 7. O-O {[%clk 0:02:56]}  Be7 {[%clk 0:02:46]} 8. Nc3 {[%clk 0:02:56]}  O-O {[%clk 0:02:45]} 9. dxc5 {[%clk 0:02:49]}  Bxc5 {[%clk 0:02:40]} 10. e3 {[%clk 0:02:49]}  Re8 {[%clk 0:02:27]} 11. b3 {[%clk 0:02:47]}  d4 {[%clk 0:02:06]} 12. Na4 {[%clk 0:02:47]}  dxe3 {[%clk 0:01:32]} 13. Qxd8 {[%clk 0:02:41]}  exf2+ {[%clk 0:01:27]} 14. Kh1 {[%clk 0:02:40]}  Rxd8 {[%clk 0:01:24]} 15. Nxc5 {[%clk 0:02:39]}  b6 {[%clk 0:01:19]} 16. Na4 {[%clk 0:02:23]}  Ba6 {[%clk 0:01:13]} 17. Rxf2 {[%clk 0:02:07]}  Ne4 {[%clk 0:01:01]} 18. Be3 {[%clk 0:01:46]}  Nxf2+ {[%clk 0:00:59]} 19. Bxf2 {[%clk 0:01:47]}  Rac8 {[%clk 0:00:44]} 20. h4 {[%clk 0:01:29]}  Nb4 {[%clk 0:00:44]} 21. a3 {[%clk 0:01:19]}  Nd3 {[%clk 0:00:42]} 22. Bd4 {[%clk 0:01:00]}  b5 {[%clk 0:00:38]} 23. Nb2 {[%clk 0:00:47]}  Nxb2 {[%clk 0:00:29]} 24. Bxb2 {[%clk 0:00:46]}  Rc2 {[%clk 0:00:29]} 25. Bd4 {[%clk 0:00:41]}  Bb7 {[%clk 0:00:28]} 26. Rd1 {[%clk 0:00:34]}  Ra2 {[%clk 0:00:17]} 27. Rc1 {[%clk 0:00:15]}  h6 {[%clk 0:00:10]} 28. Bg1 {[%clk 0:00:09]}  Rxg2 {[%clk 0:00:06]} 29. Kxg2 {[%clk 0:00:09]}  Rd2+ {[%clk 0:00:06]} 30. Bf2 {[%clk 0:00:10]}  Rd3 {[%clk 0:00:06]} 31. Rc7 {[%clk 0:00:08]}  Bxf3+ {[%clk 0:00:06]} 32. Kh2 {[%clk 0:00:06]}  Rd1 {[%clk 0:00:05]} 33. g4 {[%clk 0:00:05]}  Bxg4 {[%clk 0:00:04]} 34. Rxa7 {[%clk 0:00:05]}  Be6 {[%clk 0:00:03]} 35. a4 {[%clk 0:00:04]}  b4 {[%clk 0:00:02]} 36. a5 {[%clk 0:00:05]}  Rd2 {[%clk 0:00:03]} 37. Kg3 {[%clk 0:00:05]}  Bxb3 {[%clk 0:00:03]} 38. Rb7 {[%clk 0:00:05]}  Rd3+ {[%clk 0:00:04]} 39. Kh2 {[%clk 0:00:05]}  Bd5 {[%clk 0:00:04]} 40. Rxb4 {[%clk 0:00:05]}  Rd2 {[%clk 0:00:05]} 41. Kg3 {[%clk 0:00:04]}  Ra2 {[%clk 0:00:05]} 42. Rb8+ {[%clk 0:00:04]}  Kh7 {[%clk 0:00:05]} 43. Bb6 {[%clk 0:00:05]}  g5 {[%clk 0:00:06]} 44. hxg5 {[%clk 0:00:05]}  hxg5 {[%clk 0:00:06]} 45. Rd8 {[%clk 0:00:06]}  Be6 {[%clk 0:00:05]} 46. Ra8 {[%clk 0:00:05]}  Ra3+ {[%clk 0:00:06]} 47. Kf2 {[%clk 0:00:05]}  Bd5 {[%clk 0:00:07]} 48. Ra7 {[%clk 0:00:05]}  Kg6 {[%clk 0:00:06]} 49. Bd8 {[%clk 0:00:05]}  f5 {[%clk 0:00:06]} 50. Ra6+ {[%clk 0:00:05]}  Kh5 {[%clk 0:00:06]} 51. Rd6 {[%clk 0:00:05]}  Ra2+ {[%clk 0:00:07]} 52. Ke3 {[%clk 0:00:05]}  Be4 {[%clk 0:00:08]} 53. Kd4 {[%clk 0:00:05]}  Ra3 {[%clk 0:00:09]} 54. Ke5 {[%clk 0:00:05]}  Kg4 {[%clk 0:00:08]} 55. Rd7 {[%clk 0:00:05]}  Rb3 {[%clk 0:00:08]} 56. Rg7 {[%clk 0:00:06]}  Rb5+ {[%clk 0:00:08]} 57. Kf6 {[%clk 0:00:06]}  f4 {[%clk 0:00:08]} 58. Re7 {[%clk 0:00:04]}  Bd3 {[%clk 0:00:08]} 59. Rd7 {[%clk 0:00:03]}  Be4 {[%clk 0:00:07]} 60. Rd4 {[%clk 0:00:03]}  Bf3 {[%clk 0:00:07]} 61. Kg6 {[%clk 0:00:03]}  Rc5 {[%clk 0:00:06]} 62. Ra4 {[%clk 0:00:03]}  Rc6+ {[%clk 0:00:06]} 63. Bf6 {[%clk 0:00:03]}  Be2 {[%clk 0:00:06]} 64. Ra2 {[%clk 0:00:03]}  f3 {[%clk 0:00:06]} 65. Kg7 {[%clk 0:00:02]}  Ra6 {[%clk 0:00:04]} 66. Ra4+ {[%clk 0:00:01]}  Kg3 {[%clk 0:00:04]} 67. Be5+ {[%clk 0:00:02]}  Kf2 {[%clk 0:00:04]} 68. Bd4+ {[%clk 0:00:02]}  Kg2 {[%clk 0:00:03]} 69. Ra2 {[%clk 0:00:03]}  g4 {[%clk 0:00:03]} 70. Bb6 {[%clk 0:00:01]}  g3 {[%clk 0:00:04]} 71. Kf6 {[%clk 0:00:01]}  Kf1 {[%clk 0:00:02]} 72. Ke5 {[%clk 0:00:01]}  f2 {[%clk 0:00:03]} 73. Ra1+ {[%clk 0:00:01]}  Kg2 {[%clk 0:00:03]} 74. Kf4 {[%clk 0:00:02]}  f1=Q+ {[%clk 0:00:04]} 75. Rxf1 {[%clk 0:00:02]}  Bxf1 {[%clk 0:00:05]} 76. Ke3 {[%clk 0:00:02]}  Ra8 {[%clk 0:00:05]} 77. Kd4 {[%clk 0:00:02]}  Kf3 {[%clk 0:00:06]} 78. Kc5 {[%clk 0:00:03]}  g2 {[%clk 0:00:06]} 79. Kd6 {[%clk 0:00:03]}  Ra6 {[%clk 0:00:06]} 80. Kc7 {[%clk 0:00:03]}  Rxb6 {[%clk 0:00:06]} 81. axb6 {[%clk 0:00:04]}  g1=Q {[%clk 0:00:07]} 82. b7 {[%clk 0:00:05]}  Qg7+ {[%clk 0:00:07]} 83. Kd8 {[%clk 0:00:04]}  Qg8+ {[%clk 0:00:07]} 84. Kc7 {[%clk 0:00:04]}  Qf7+ {[%clk 0:00:08]} 85. Kb6 {[%clk 0:00:05]}  Qe8 {[%clk 0:00:08]} 86. Ka7 {[%clk 0:00:05]}  Qd7 {[%clk 0:00:08]} 87. Ka8 {[%clk 0:00:06]}  Qa4+ {[%clk 0:00:08]} 88. Kb8 {[%clk 0:00:07]}  Bh3 {[%clk 0:00:08]} 89. Kc7 {[%clk 0:00:07]}  Qc4+ {[%clk 0:00:08]} 90. Kb8 {[%clk 0:00:07]}  Bd7 {[%clk 0:00:07]} 91. Ka7 {[%clk 0:00:08]}  Qa4+ {[%clk 0:00:07]} 92. Kb8 {[%clk 0:00:09]}  Bc6 {[%clk 0:00:07]} 93. Kc7 {[%clk 0:00:09]}  Qa7 {[%clk 0:00:07]} 94. Kd8 {[%clk 0:00:08]}  Qxb7 {[%clk 0:00:06]} 1/2-1/2


[Site "https://www.chess.com"]

[Event "Titled Tuesday Blitz July 25 Early 2023"]
[White "Kochiev, Ivan"]
[Black "K2JW"]
[WhiteFideId "2917890"]
[WhiteElo "2550"]
[BlackElo "2341"]
[Result "1-0"]
[Round "3"]
[TimeControl "180+2"]
[Date "2023.07.25"]
[WhiteClock "0:00:27"]
[BlackClock "0:00:05"]
[Board "143"]

1. e4 {[%clk 0:03:00]}  c6 {[%clk 0:02:58]} 2. d4 {[%clk 0:03:01]}  d5 {[%clk 0:02:59]} 3. Nc3 {[%clk 0:03:02]}  dxe4 {[%clk 0:02:59]} 4. Nxe4 {[%clk 0:03:02]}  Nf6 {[%clk 0:03:00]} 5. Nxf6+ {[%clk 0:03:03]}  exf6 {[%clk 0:03:00]} 6. c3 {[%clk 0:03:04]}  Bd6 {[%clk 0:03:00]} 7. Bd3 {[%clk 0:03:05]}  O-O {[%clk 0:03:01]} 8. Ne2 {[%clk 0:03:05]}  Re8 {[%clk 0:03:01]} 9. O-O {[%clk 0:03:04]}  Nd7 {[%clk 0:02:57]} 10. Ng3 {[%clk 0:03:05]}  Nf8 {[%clk 0:02:55]} 11. f4 {[%clk 0:03:05]}  Qc7 {[%clk 0:02:28]} 12. f5 {[%clk 0:03:03]}  c5 {[%clk 0:02:04]} 13. Nh5 {[%clk 0:02:46]}  Qd8 {[%clk 0:01:12]} 14. d5 {[%clk 0:02:11]}  Be5 {[%clk 0:01:10]} 15. c4 {[%clk 0:01:48]}  g6 {[%clk 0:00:34]} 16. Qg4 {[%clk 0:01:35]}  Kh8 {[%clk 0:00:30]} 17. Ng3 {[%clk 0:01:21]}  Nd7 {[%clk 0:00:21]} 18. Bf4 {[%clk 0:00:36]}  Bd4+ {[%clk 0:00:21]} 19. Kh1 {[%clk 0:00:36]}  Ne5 {[%clk 0:00:20]} 20. Bxe5 {[%clk 0:00:36]}  Bxe5 {[%clk 0:00:21]} 21. Qh4 {[%clk 0:00:33]}  g5 {[%clk 0:00:21]} 22. Qh5 {[%clk 0:00:31]}  Qc7 {[%clk 0:00:21]} 23. Ne4 {[%clk 0:00:31]}  Kg7 {[%clk 0:00:18]} 24. Nxg5 {[%clk 0:00:25]}  fxg5 {[%clk 0:00:12]} 25. f6+ {[%clk 0:00:26]}  Bxf6 {[%clk 0:00:03]} 26. Qxh7+ {[%clk 0:00:26]}  Kf8 {[%clk 0:00:04]} 27. Rxf6 {[%clk 0:00:27]}  Qe5 {[%clk 0:00:05]} 1-0


[Site "https://www.chess.com"]

[Event "Titled Tuesday Blitz July 25 Early 2023"]
[White "Vujacic, Igor"]
[Black "Galiot, Goran"]
[WhiteFideId "932620"]
[BlackFideId "931560"]
[WhiteElo "2338"]
[BlackElo "2547"]
[Result "0-1"]
[Round "3"]
[TimeControl "180+2"]
[Date "2023.07.25"]
[WhiteClock "0:00:05"]
[BlackClock "0:00:29"]
[Board "144"]

1. d4 {[%clk 0:03:00]}  Nf6 {[%clk 0:02:59]} 2. Bf4 {[%clk 0:03:01]}  g6 {[%clk 0:02:59]} 3. Nc3 {[%clk 0:03:01]}  Bg7 {[%clk 0:03:00]} 4. e4 {[%clk 0:03:02]}  d6 {[%clk 0:03:00]} 5. Qd2 {[%clk 0:03:02]}  Nc6 {[%clk 0:02:59]} 6. d5 {[%clk 0:03:02]}  e5 {[%clk 0:02:57]} 7. Bh6 {[%clk 0:02:03]}  Bxh6 {[%clk 0:02:55]} 8. Qxh6 {[%clk 0:02:03]}  Nd4 {[%clk 0:02:55]} 9. O-O-O {[%clk 0:02:00]}  Ng4 {[%clk 0:02:34]} 10. Qd2 {[%clk 0:01:59]}  f5 {[%clk 0:02:22]} 11. exf5 {[%clk 0:01:43]}  Bxf5 {[%clk 0:02:17]} 12. f3 {[%clk 0:01:42]}  Nf6 {[%clk 0:02:10]} 13. Bd3 {[%clk 0:01:40]}  O-O {[%clk 0:02:02]} 14. Nge2 {[%clk 0:01:35]}  Nxe2+ {[%clk 0:01:57]} 15. Nxe2 {[%clk 0:01:32]}  Bxd3 {[%clk 0:01:46]} 16. Qxd3 {[%clk 0:01:30]}  Nh5 {[%clk 0:01:46]} 17. h4 {[%clk 0:01:23]}  Qf6 {[%clk 0:01:34]} 18. Kb1 {[%clk 0:01:16]}  Nf4 {[%clk 0:01:16]} 19. Nxf4 {[%clk 0:01:13]}  exf4 {[%clk 0:01:17]} 20. h5 {[%clk 0:01:07]}  g5 {[%clk 0:01:15]} 21. Rde1 {[%clk 0:00:40]}  Rae8 {[%clk 0:01:13]} 22. Qb5 {[%clk 0:00:39]}  Re3 {[%clk 0:00:58]} 23. Qd7 {[%clk 0:00:18]}  Qf7 {[%clk 0:00:50]} 24. Qxf7+ {[%clk 0:00:06]}  Kxf7 {[%clk 0:00:48]} 25. Kc1 {[%clk 0:00:05]}  Rfe8 {[%clk 0:00:48]} 26. Rxe3 {[%clk 0:00:05]}  Rxe3 {[%clk 0:00:47]} 27. Kd2 {[%clk 0:00:05]}  Kf6 {[%clk 0:00:46]} 28. c3 {[%clk 0:00:05]}  h6 {[%clk 0:00:43]} 29. Re1 {[%clk 0:00:04]}  Rxe1 {[%clk 0:00:42]} 30. Kxe1 {[%clk 0:00:05]}  Ke5 {[%clk 0:00:42]} 31. c4 {[%clk 0:00:04]}  Kd4 {[%clk 0:00:43]} 32. b3 {[%clk 0:00:05]}  Kc3 {[%clk 0:00:39]} 33. Kd1 {[%clk 0:00:05]}  Kb2 {[%clk 0:00:38]} 34. Kd2 {[%clk 0:00:04]}  Kxa2 {[%clk 0:00:38]} 35. Kc3 {[%clk 0:00:05]}  a5 {[%clk 0:00:38]} 36. b4 {[%clk 0:00:04]}  axb4+ {[%clk 0:00:33]} 37. Kxb4 {[%clk 0:00:05]}  Kb2 {[%clk 0:00:33]} 38. c5 {[%clk 0:00:05]}  dxc5+ {[%clk 0:00:29]} 39. Kxc5 {[%clk 0:00:05]}  Kc2 {[%clk 0:00:30]} 40. d6 {[%clk 0:00:04]}  cxd6+ {[%clk 0:00:30]} 41. Kxd6 {[%clk 0:00:05]}  Kd3 {[%clk 0:00:29]} 0-1


[Site "https://www.chess.com"]

[Event "Titled Tuesday Blitz July 25 Early 2023"]
[White "Andreev, Konstantin"]
[Black "Matko, Ognjen"]
[WhiteFideId "24239305"]
[BlackFideId "14509717"]
[WhiteElo "2543"]
[BlackElo "2329"]
[Result "0-1"]
[Round "3"]
[TimeControl "180+2"]
[Date "2023.07.25"]
[WhiteClock "0:00:02"]
[BlackClock "0:00:06"]
[Board "147"]

1. e4 {[%clk 0:03:00]}  c5 {[%clk 0:02:53]} 2. Nf3 {[%clk 0:03:00]}  d6 {[%clk 0:02:48]} 3. d4 {[%clk 0:02:59]}  cxd4 {[%clk 0:02:49]} 4. Nxd4 {[%clk 0:03:00]}  Nf6 {[%clk 0:02:49]} 5. Nc3 {[%clk 0:03:00]}  a6 {[%clk 0:02:48]} 6. h4 {[%clk 0:03:00]}  e5 {[%clk 0:02:47]} 7. Nb3 {[%clk 0:02:59]}  Be6 {[%clk 0:02:44]} 8. f4 {[%clk 0:02:58]}  Qc7 {[%clk 0:02:28]} 9. f5 {[%clk 0:02:57]}  Bc4 {[%clk 0:02:27]} 10. g4 {[%clk 0:02:57]}  Bxf1 {[%clk 0:02:23]} 11. Rxf1 {[%clk 0:02:58]}  h6 {[%clk 0:02:21]} 12. Be3 {[%clk 0:02:57]}  Nbd7 {[%clk 0:02:13]} 13. g5 {[%clk 0:02:57]}  hxg5 {[%clk 0:02:12]} 14. hxg5 {[%clk 0:02:58]}  Rh3 {[%clk 0:01:51]} 15. gxf6 {[%clk 0:02:32]}  Rxe3+ {[%clk 0:01:49]} 16. Kd2 {[%clk 0:02:33]}  Rxc3 {[%clk 0:01:48]} 17. bxc3 {[%clk 0:02:31]}  gxf6 {[%clk 0:01:43]} 18. Qh5 {[%clk 0:02:26]}  Rc8 {[%clk 0:01:40]} 19. Rf3 {[%clk 0:02:25]}  d5 {[%clk 0:01:19]} 20. exd5 {[%clk 0:02:21]}  Nb6 {[%clk 0:01:03]} 21. Rg1 {[%clk 0:02:10]}  Nxd5 {[%clk 0:00:58]} 22. Rg8 {[%clk 0:01:54]}  e4 {[%clk 0:00:57]} 23. Qh8 {[%clk 0:01:18]}  Qd6 {[%clk 0:00:52]} 24. Rxf8+ {[%clk 0:01:10]}  Qxf8 {[%clk 0:00:53]} 25. Qxf8+ {[%clk 0:01:11]}  Kxf8 {[%clk 0:00:53]} 26. Rh3 {[%clk 0:01:11]}  e3+ {[%clk 0:00:44]} 27. Kd1 {[%clk 0:00:58]}  Nxc3+ {[%clk 0:00:38]} 28. Ke1 {[%clk 0:00:58]}  Re8 {[%clk 0:00:27]} 29. Nd4 {[%clk 0:00:57]}  Kg7 {[%clk 0:00:23]} 30. a3 {[%clk 0:00:52]}  Re4 {[%clk 0:00:20]} 31. Nf3 {[%clk 0:00:43]}  Rg4 {[%clk 0:00:17]} 32. Rh1 {[%clk 0:00:31]}  Kf8 {[%clk 0:00:16]} 33. Kf1 {[%clk 0:00:22]}  Rg3 {[%clk 0:00:14]} 34. Ne1 {[%clk 0:00:21]}  Rg5 {[%clk 0:00:11]} 35. Rh8+ {[%clk 0:00:14]}  Kg7 {[%clk 0:00:10]} 36. Rb8 {[%clk 0:00:15]}  Rxf5+ {[%clk 0:00:11]} 37. Kg1 {[%clk 0:00:15]}  Rb5 {[%clk 0:00:12]} 38. Re8 {[%clk 0:00:14]}  Re5 {[%clk 0:00:09]} 39. Rd8 {[%clk 0:00:15]}  Rg5+ {[%clk 0:00:09]} 40. Kf1 {[%clk 0:00:15]}  e2+ {[%clk 0:00:09]} 41. Kf2 {[%clk 0:00:15]}  Rf5+ {[%clk 0:00:09]} 42. Ke3 {[%clk 0:00:15]}  Rf1 {[%clk 0:00:08]} 43. Kd2 {[%clk 0:00:16]}  f5 {[%clk 0:00:08]} 44. Rd4 {[%clk 0:00:15]}  Kf6 {[%clk 0:00:06]} 45. Rh4 {[%clk 0:00:09]}  b5 {[%clk 0:00:06]} 46. Nd3 {[%clk 0:00:08]}  Rd1+ {[%clk 0:00:04]} 47. Kxc3 {[%clk 0:00:08]}  e1=Q+ {[%clk 0:00:05]} 48. Nxe1 {[%clk 0:00:09]}  Rxe1 {[%clk 0:00:06]} 49. Rh6+ {[%clk 0:00:09]}  Kg5 {[%clk 0:00:06]} 50. Kd2 {[%clk 0:00:10]}  Ra1 {[%clk 0:00:05]} 51. Rh3 {[%clk 0:00:08]}  f4 {[%clk 0:00:05]} 52. Ke2 {[%clk 0:00:08]}  Kg4 {[%clk 0:00:05]} 53. Rc3 {[%clk 0:00:09]}  f5 {[%clk 0:00:04]} 54. Kf2 {[%clk 0:00:09]}  Rd1 {[%clk 0:00:03]} 55. Ke2 {[%clk 0:00:09]}  Rh1 {[%clk 0:00:03]} 56. Kf2 {[%clk 0:00:09]}  Rh2+ {[%clk 0:00:04]} 57. Kg1 {[%clk 0:00:10]}  Rd2 {[%clk 0:00:04]} 58. Kf1 {[%clk 0:00:10]}  f3 {[%clk 0:00:04]} 59. Re3 {[%clk 0:00:06]}  Re2 {[%clk 0:00:05]} 60. Rd3 {[%clk 0:00:04]}  Kg3 {[%clk 0:00:05]} 61. c3 {[%clk 0:00:02]}  Rc2 {[%clk 0:00:05]} 62. Rd1 {[%clk 0:00:01]}  Rxc3 {[%clk 0:00:06]} 63. Rd2 {[%clk 0:00:01]}  Rc1+ {[%clk 0:00:06]} 64. Rd1 {[%clk 0:00:02]}  Rxd1# {[%clk 0:00:06]} 0-1


[Site "https://www.chess.com"]